fUST/lending_fUST_20250930
["ID","MTS","AMOUNT","RATE_DAILY","PERIOD"]
[388461305,1759178002549,458.11588662,0.00022249,2]
[388461306,1759178003171,484.72,0.00022249,2]
[388461308,1759178010884,471.41,0.00022249,2]
[388461309,1759178011663,480.0,0.00022249,2]
[388461310,1759178012260,480.0,0.00022249,2]
[388461311,1759178012974,480.0,0.00022249,2]
[388461312,1759178016715,480.0,0.00022249,2]
[388461313,1759178016998,825.92,0.00022249,2]
[388461314,1759178021724,480.0,0.00022249,2]
[388461315,1759178029134,23.88794977,0.00022249,2]
[388461316,1759178029161,456.11205023,0.00022249,2]
[388461317,1759178030896,480.0,0.00022249,2]
[388461318,1759178032154,480.0,0.00022249,2]
[388461319,1759178032255,480.0,0.00022249,2]
[388461320,1759178034844,848.19,0.00022242,10]
[388461321,1759178039039,480.0,0.00022249,2]
[388461322,1759178040992,480.0,0.00022249,2]
[388461323,1759178042314,300.0,0.00022249,2]
[388461324,1759178043933,480.0,0.00022249,2]
[388461325,1759178044053,480.0,0.00022249,2]
[388461326,1759178044979,480.0,0.00022249,2]
[388461327,1759178046941,497.42755054,0.00022249,2]
[388461328,1759178053615,305.42756967,0.00022249,2]
[388461329,1759178054784,480.0,0.00022249,2]
[388461330,1759178055682,480.0,0.00022249,2]
[388461331,1759178056264,480.0,0.00022249,2]
[388461332,1759178060350,480.0,0.00022249,2]
[388461333,1759178063659,480.0,0.00022249,2]
[388461334,1759178064326,480.0,0.00022249,2]
[388461335,1759178066661,595.78,0.00022249,2]
[388461336,1759178072671,203.8887403,0.00022249,2]
[388461337,1759178072703,73.18408926,0.00022249,2]
[388461338,1759178072730,258.85000796,0.00022249,2]
[388461339,1759178072762,500.0,0.00022249,2]
[388461340,1759178072797,213.84510504,0.00022249,2]
[388461341,1759178072837,500.0,0.00022249,2]
[388461342,1759178072882,500.0,0.00022249,2]
[388461343,1759178072913,615.8669416,0.00022249,2]
[388461345,1759178075709,480.0,0.00022249,2]
[388461346,1759178076872,480.0,0.00022249,2]
[388461347,1759178079493,480.0,0.00022249,2]
[388461348,1759178080792,480.0,0.00022249,2]
[388461349,1759178083351,592.07,0.00022249,2]
[388461350,1759178084443,480.0,0.00022249,2]
[388461351,1759178089036,480.0,0.00022249,2]
[388461352,1759178089521,480.0,0.00022249,2]
[388461355,1759178102310,300.0,0.00022249,2]
[388461356,1759178102424,300.0,0.00022249,2]
[388461357,1759178103159,2859.3779454,0.00021251,2]
[388461358,1759178103184,10000.01,0.00021251,2]
[388461359,1759178103209,4388.0835726,0.00021251,2]
[388461360,1759178103277,500.0,0.00022249,2]
[388461361,1759178103329,471.32102308,0.00022249,2]
[388461362,1759178103569,480.0,0.00022249,2]
[388461363,1759178104005,502.75,0.00022249,2]
[388461364,1759178105215,480.0,0.00022249,2]
[388461365,1759178105441,480.0,0.00022249,2]
[388461366,1759178106364,1200.0,0.00022249,2]
[388461368,1759178109934,1052.51193558,0.00025,30]
[388461369,1759178113321,480.0,0.00022249,2]
[388461370,1759178115136,500.0,0.00022249,2]
[388461371,1759178115386,500.0,0.00022249,2]
[388461372,1759178115690,17.85540432,0.00022249,2]
[388461373,1759178115716,482.14459568,0.00022249,2]
[388461374,1759178115936,420.0,0.00022249,2]
[388461375,1759178117468,480.0,0.00022249,2]
[388461376,1759178125067,480.0,0.00022249,2]
[388461377,1759178127774,480.0,0.00022249,2]
[388461378,1759178139834,480.0,0.00022249,2]
[388461379,1759178146111,480.0,0.00022249,2]
[388461380,1759178148199,480.0,0.00022249,2]
[388461381,1759178150511,480.0,0.00022249,2]
[388461382,1759178158802,480.0,0.00022249,2]
[388461383,1759178160047,480.0,0.00022249,2]
[388461384,1759178162091,480.0,0.00022249,2]
[388461385,1759178162317,300.0,0.00022249,2]
[388461386,1759178170585,508.96,0.00022249,2]
[388461387,1759178172821,480.0,0.00022249,2]
[388461388,1759178175994,480.0,0.00022249,2]
[388461389,1759178181641,480.0,0.00022249,2]
[388461390,1759178182147,480.0,0.00022249,2]
[388461391,1759178185719,480.0,0.00022249,2]
[388461392,1759178189789,679.18,0.00022249,2]
[388461393,1759178191876,409.72540432,0.00022249,2]
[388461394,1759178191900,70.27459568,0.00022249,2]
[388461395,1759178193327,522.19,0.00022249,2]
[388461396,1759178200091,480.0,0.00022249,2]
[388461397,1759178201543,480.0,0.00022249,2]
[388461398,1759178203160,1148.55,0.00022249,2]
[388461399,1759178205699,264.28208441,0.00022249,2]
[388461400,1759178207553,-185.96347778,0.00022249,2]
[388461401,1759178207596,-178.81317576,0.00022249,2]
[388461402,1759178207643,-500.0,0.00022249,2]
[388461403,1759178207689,-436.890707,0.00022249,2]
[388461404,1759178208937,480.0,0.00022249,2]
[388461405,1759178209233,6648.5603781,0.00021382,2]
[388461406,1759178213898,268.11490082,0.00022249,2]
[388461407,1759178213923,211.88509918,0.00022249,2]
[388461408,1759178216992,480.0,0.00022249,2]
[388461409,1759178217390,-155.31522876,0.0002225,2]
[388461410,1759178222169,480.0,0.00022249,2]
[388461411,1759178222679,300.0,0.00022249,2]
[388461412,1759178223242,480.0,0.00022249,2]
[388461413,1759178226613,500.0,0.00022249,2]
[388461414,1759178231117,480.0,0.00022249,2]
[388461415,1759178231994,480.0,0.00022249,2]
[388461416,1759178236559,480.0,0.00022249,2]
[388461417,1759178237357,480.0,0.00022249,2]
[388461418,1759178239529,480.0,0.00022249,2]
[388461419,1759178240647,518.99,0.00022249,2]
[388461420,1759178240737,1200.0,0.00022249,2]
[388461421,1759178240784,480.0,0.00022249,2]
[388461422,1759178243164,2273.32,0.00022249,2]
[388461423,1759178244553,1057.06954248,0.00022249,2]
[388461424,1759178244577,1217.60045752,0.00022249,2]
[388461426,1759178250459,480.0,0.00022249,2]
[388461427,1759178253973,480.0,0.00022249,2]
[388461428,1759178254582,567.97,0.00022249,2]
[388461429,1759178254611,480.0,0.00022249,2]
[388461430,1759178256157,616.35339593,0.00021916,8]
[388461431,1759178256863,480.0,0.00022249,2]
[388461432,1759178257568,558.16,0.00022249,2]
[388461433,1759178258503,488.6,0.00022249,2]
[388461434,1759178259944,480.0,0.00022249,2]
[388461435,1759178260464,484.01351364,0.00022249,2]
[388461436,1759178262703,480.0,0.00022249,2]
[388461437,1759178265628,480.0,0.00022249,2]
[388461438,1759178268409,480.0,0.00022249,2]
[388461439,1759178269635,554.47404086,0.00022249,2]
[388461440,1759178270130,638.41,0.00022249,2]
[388461441,1759178270174,480.0,0.00022249,2]
[388461452,1759178274568,480.0,0.00022249,2]
[388461455,1759178274908,74.42859205,0.00022249,2]
[388461456,1759178274935,405.57140795,0.00022249,2]
[388461457,1759178275536,480.0,0.00022249,2]
[388461458,1759178276776,480.0,0.00022249,2]
[388461459,1759178279438,714.50514168,0.0002215,2]
[388461460,1759178280180,169.0,0.00016503,2]
[388461461,1759178280280,168.99,0.00016503,3]
[388461462,1759178280363,1498.98,0.00022249,2]
[388461463,1759178281841,480.0,0.00022249,2]
[388461464,1759178282531,300.0,0.00022249,2]
[388461465,1759178283691,480.0,0.00022249,2]
[388461466,1759178286197,897.31,0.00022249,2]
[388461467,1759178286364,480.0,0.00022249,2]
[388461468,1759178288631,480.0,0.00022249,2]
[388461469,1759178292526,480.0,0.00022249,2]
[388461470,1759178293700,1117.76,0.00022249,2]
[388461471,1759178294332,480.0,0.00022249,2]
[388461472,1759178295461,480.0,0.00022249,2]
[388461473,1759178296644,407.89345037,0.00022249,2]
[388461474,1759178296669,72.10654963,0.00022249,2]
[388461475,1759178297295,506.55,0.00022249,2]
[388461476,1759178300727,480.0,0.00022249,2]
[388461477,1759178304214,480.0,0.00022249,2]
[388461478,1759178304245,785.08,0.00022249,2]
[388461479,1759178304294,197.46347126,0.00022184,2]
[388461480,1759178304791,480.0,0.00022249,2]
[388461481,1759178306188,480.0,0.00022249,2]
[388461482,1759178315078,480.0,0.00022249,2]
[388461483,1759178315352,480.0,0.00022249,2]
[388461484,1759178317106,635.92,0.00022249,2]
[388461485,1759178321389,214.531751,0.00021407,2]
[388461486,1759178325239,480.0,0.00022249,2]
[388461487,1759178327879,704.83,0.00022249,2]
[388461488,1759178331036,480.0,0.00022249,2]
[388461489,1759178331068,524.78,0.00022249,2]
[388461490,1759178331483,500.0,0.00022249,2]
[388461491,1759178340376,782.6,0.00022249,2]
[388461492,1759178342199,1257.99,0.00022249,2]
[388461493,1759178342399,300.0,0.00022249,2]
[388461494,1759178345353,480.0,0.00022249,2]
[388461495,1759178348582,500.0,0.00022249,2]
[388461496,1759178350162,4469.81,0.0002215,2]
[388461497,1759178350187,10000.01,0.0002215,2]
[388461498,1759178350212,10000.01,0.0002215,2]
[388461499,1759178350236,10000.01,0.0002215,2]
[388461500,1759178350260,10000.01,0.0002215,2]
[388461501,1759178350284,10000.01,0.0002215,2]
[388461502,1759178350307,10000.01,0.0002215,2]
[388461503,1759178350330,10000.01,0.0002215,2]
[388461504,1759178350356,10000.01,0.0002215,2]
[388461505,1759178350379,10000.01,0.0002215,2]
[388461506,1759178351956,-251.74226267,0.0002215,2]
[388461507,1759178388482,-5700.7222525,0.0002215,2]
[388461508,1759178388515,-10000.01,0.0002215,2]
[388461509,1759178388612,-10000.01,0.0002215,2]
[388461510,1759178388764,-10000.01,0.0002215,2]
[388461511,1759178388923,-10000.01,0.0002215,2]
[388461512,1759178389086,-10000.01,0.0002215,2]
[388461513,1759178389247,-10000.01,0.0002215,2]
[388461515,1759178397836,-10000.01,0.0002215,2]
[388461516,1759178397951,-10000.01,0.0002215,2]
[388461518,1759178427803,-3151.78647121,0.0002128,2]
[388461519,1759178427850,-3696.43705758,0.0002128,2]
[388461520,1759178427931,-1901.13571528,0.0002128,2]
[388461521,1759178427962,-1197.73856944,0.00021919,13]
[388461522,1759178428010,-3802.26143056,0.00021919,13]
[388461523,1759178428124,-150.72,0.0002214,3]
[388461524,1759178428156,-452.17,0.0002214,3]
[388461525,1759178428188,-300.0,0.00022149,2]
[388461526,1759178428219,-300.0,0.00022149,2]
[388461527,1759178428248,-300.0,0.00022149,2]
[388461528,1759178428279,-300.0,0.00022149,2]
[388461529,1759178428310,-1200.0,0.00022149,2]
[388461530,1759178428480,-3994.23,0.0002215,2]
[388461531,1759178428514,-10000.01,0.0002215,2]
[388461532,1759178428535,-10000.01,0.0002215,2]
[388461533,1759178428620,-10000.01,0.0002215,2]
[388461534,1759178428770,-10000.01,0.0002215,2]
[388461536,1759178438287,-3467.77231604,0.00021929,13]
[388461538,1759178473185,4036.36291968,0.00033483,120]
[388461539,1759178479700,3064.46536792,0.00021222,2]
[388461540,1759178479726,10000.01,0.00021222,2]
[388461541,1759178479750,10000.01,0.00021222,2]
[388461542,1759178479774,3977.15110988,0.00021222,2]
[388461544,1759178482155,300.0,0.000219,2]
[388461554,1759178692504,348.211627,0.00021143,2]
[388461556,1759178738695,-828.28975746,0.00022048,2]
[388461557,1759178740338,151.79164017,0.00022047,2]
[388461558,1759178745530,-151.79164016,0.00022074,2]
[388461561,1759178867096,1038.14131528,0.00033524,120]
[388461562,1759178887186,724.75353783,0.00022046,2]
[388461564,1759178898471,2498.82180958,0.00033524,120]
[388461758,1759179038637,-300.0,0.00022099,2]
[388461759,1759179038647,-300.0,0.00022099,2]
[388461760,1759179038656,-300.0,0.00022099,2]
[388461761,1759179038666,-300.0,0.00022099,2]
[388461762,1759179038675,-1200.0,0.00022099,2]
[388461763,1759179038686,-160.0,0.00022099,2]
[388461764,1759179038696,-151.0,0.000221,8]
[388461765,1759179038705,-500.0,0.000221,2]
[388461766,1759179038714,-5368.30994576,0.000221,2]
[388461767,1759179038723,-834.88,0.00022138,3]
[388461768,1759179038732,-417.44,0.00022138,3]
[388461769,1759179038741,-238.8120642,0.00022138,2]
[388461770,1759179038751,-197.23857712,0.00022138,2]
[388461771,1759179038760,-500.0,0.00022138,2]
[388461772,1759179038769,-474.5553401,0.00022138,2]
[388461773,1759179038778,-500.0,0.00022138,2]
[388461774,1759179038788,-500.0,0.00022138,2]
[388461775,1759179038797,-500.0,0.00022138,2]
[388461776,1759179038807,-500.0,0.00022138,2]
[388461777,1759179038815,-500.0,0.00022138,2]
[388461778,1759179038825,-500.0,0.00022138,2]
[388461779,1759179038834,-500.0,0.00022138,2]
[388461780,1759179038844,-500.0,0.00022138,2]
[388461781,1759179038853,-500.0,0.00022138,2]
[388461782,1759179038862,-500.0,0.00022138,2]
[388461783,1759179038872,-500.0,0.00022138,2]
[388461784,1759179038881,-500.0,0.00022138,2]
[388461785,1759179038891,-500.0,0.00022138,2]
[388461786,1759179038900,-500.0,0.00022138,2]
[388461787,1759179038910,-500.0,0.00022138,2]
[388461788,1759179038920,-500.0,0.00022138,2]
[388461789,1759179038931,-500.0,0.00022138,2]
[388461791,1759179038940,-500.0,0.00022138,2]
[388461793,1759179038950,-500.0,0.00022138,2]
[388461794,1759179038958,-500.0,0.00022138,2]
[388461795,1759179038968,-500.0,0.00022138,2]
[388461796,1759179038977,-500.0,0.00022138,2]
[388461797,1759179038987,-500.0,0.00022138,2]
[388461798,1759179038996,-500.0,0.00022138,2]
[388461799,1759179039005,-500.0,0.00022138,2]
[388461800,1759179039014,-500.0,0.00022138,2]
[388461801,1759179039024,-419.27534044,0.00022138,2]
[388461802,1759179039033,-575.0,0.00022138,2]
[388461803,1759179039041,-450.0,0.00022138,2]
[388461804,1759179039051,-380.00487791,0.00022138,2]
[388461805,1759179039060,-500.0,0.00022138,2]
[388461806,1759179039069,-500.0,0.00022138,2]
[388461807,1759179039078,-400.0,0.00022138,2]
[388461808,1759179039088,-500.0,0.00022138,2]
[388461809,1759179039098,-500.0,0.00022138,2]
[388461810,1759179039107,-500.0,0.00022138,2]
[388461811,1759179039117,-500.0,0.00022138,2]
[388461812,1759179039127,-500.0,0.00022138,2]
[388461813,1759179039136,-500.0,0.00022138,2]
[388461814,1759179039146,-350.0,0.00022138,2]
[388461815,1759179039156,-500.0,0.00022138,2]
[388461816,1759179039165,-500.0,0.00022138,2]
[388461817,1759179039175,-500.0,0.00022138,2]
[388461818,1759179039189,-500.0,0.00022138,2]
[388461819,1759179039199,-500.0,0.00022138,2]
[388461820,1759179039209,-500.0,0.00022138,2]
[388461821,1759179039219,-500.0,0.00022138,2]
[388461822,1759179039229,-500.0,0.00022138,2]
[388461823,1759179039238,-500.0,0.00022138,2]
[388461824,1759179039248,-500.0,0.00022138,2]
[388461825,1759179039258,-500.0,0.00022138,2]
[388461826,1759179039267,-500.0,0.00022138,2]
[388461827,1759179039276,-500.0,0.00022138,2]
[388461828,1759179039285,-602.23536998,0.00022138,2]
[388461829,1759179039295,-500.0,0.00022138,2]
[388461830,1759179039303,-500.0,0.00022138,2]
[388461831,1759179039313,-186.79502842,0.00022138,2]
[388461832,1759179039322,-500.0,0.00022138,2]
[388461833,1759179039331,-500.0,0.00022138,2]
[388461834,1759179039340,-500.0,0.00022138,2]
[388461835,1759179039349,-500.0,0.00022138,2]
[388461836,1759179039358,-500.0,0.00022138,2]
[388461837,1759179039367,-500.0,0.00022138,2]
[388461838,1759179039376,-500.0,0.00022138,2]
[388461839,1759179039385,-500.0,0.00022138,2]
[388461840,1759179039395,-500.0,0.00022138,2]
[388461841,1759179039404,-500.0,0.00022138,2]
[388461842,1759179039413,-500.0,0.00022138,2]
[388461843,1759179039422,-500.0,0.00022138,2]
[388461844,1759179039434,-500.0,0.00022138,2]
[388461845,1759179039443,-500.0,0.00022138,2]
[388461846,1759179039453,-500.0,0.00022138,2]
[388461847,1759179039462,-500.0,0.00022138,2]
[388461848,1759179039471,-500.0,0.00022138,2]
[388461849,1759179039482,-500.0,0.00022138,2]
[388461850,1759179039491,-500.0,0.00022138,2]
[388461851,1759179039500,-500.0,0.00022138,2]
[388461852,1759179039509,-1669.75,0.00022139,3]
[388461853,1759179039518,-1200.0,0.00022139,2]
[388461854,1759179039527,-480.0,0.00022139,2]
[388461855,1759179039554,-217.00372313,0.00022139,2]
[388461856,1759179039564,-480.0,0.00022139,2]
[388461857,1759179039573,-2800.29,0.00022139,2]
[388461858,1759179039581,-480.0,0.00022139,2]
[388461859,1759179039591,-480.0,0.00022139,2]
[388461860,1759179039599,-480.0,0.00022139,2]
[388461861,1759179039609,-1030.87,0.00022139,2]
[388461862,1759179039618,-480.0,0.00022139,2]
[388461863,1759179039627,-480.0,0.00022139,2]
[388461864,1759179039636,-480.0,0.00022139,2]
[388461865,1759179039646,-6679.01,0.0002214,3]
[388461866,1759179039655,-3339.5,0.0002214,3]
[388461867,1759179039664,-189.40172226,0.0002214,3]
[388461868,1759179039672,-208.72,0.0002214,3]
[388461869,1759179039683,-626.16,0.0002214,3]
[388461870,1759179039692,-480.0,0.00022146,2]
[388461871,1759179039701,-480.0,0.00022146,2]
[388461872,1759179039710,-480.0,0.00022146,2]
[388461873,1759179039719,-480.0,0.00022146,2]
[388461874,1759179039729,-480.0,0.00022146,2]
[388461875,1759179039738,-480.0,0.00022146,2]
[388461876,1759179039747,-480.0,0.00022146,2]
[388461877,1759179039756,-693.21,0.00022146,2]
[388461878,1759179039765,-1516.11,0.00022146,2]
[388461879,1759179039774,-480.0,0.00022146,2]
[388461880,1759179039784,-2810.05,0.00022146,2]
[388461881,1759179039793,-688.92,0.00022146,2]
[388461882,1759179039802,-480.0,0.00022146,2]
[388461883,1759179039811,-480.0,0.00022146,2]
[388461884,1759179039821,-480.0,0.00022146,2]
[388461885,1759179039830,-480.0,0.00022147,2]
[388461886,1759179039839,-485.31297155,0.00022147,2]
[388461887,1759179039848,-480.0,0.00022147,2]
[388461888,1759179039857,-480.0,0.00022147,2]
[388461889,1759179039866,-452.72785716,0.00022147,2]
[388461890,1759179039875,-480.0,0.00022147,2]
[388461891,1759179039884,-639.31,0.00022147,2]
[388461892,1759179039893,-480.0,0.00022147,2]
[388461893,1759179039902,-480.0,0.00022147,2]
[388461894,1759179039911,-480.0,0.00022147,2]
[388461895,1759179039920,-480.0,0.00022147,2]
[388461896,1759179039930,-480.0,0.00022147,2]
[388461897,1759179039941,-480.0,0.00022147,2]
[388461898,1759179039950,-480.0,0.00022147,2]
[388461899,1759179039959,-480.0,0.00022147,2]
[388461900,1759179039969,-480.0,0.00022147,2]
[388461901,1759179039979,-480.0,0.00022147,2]
[388461902,1759179039988,-480.0,0.00022147,2]
[388461903,1759179039998,-480.0,0.00022147,2]
[388461904,1759179040008,-802.35,0.00022147,2]
[388461905,1759179040017,-480.0,0.00022147,2]
[388461906,1759179040027,-480.0,0.00022147,2]
[388461907,1759179040035,-480.0,0.00022147,2]
[388461908,1759179040044,-480.0,0.00022147,2]
[388461909,1759179040053,-1439.11,0.00022147,2]
[388461910,1759179040063,-480.0,0.00022147,2]
[388461911,1759179040072,-480.0,0.00022147,2]
[388461912,1759179040081,-1825.32,0.00022147,2]
[388461913,1759179040090,-303.98594967,0.00022147,2]
[388461914,1759179040099,-480.0,0.00022147,2]
[388461915,1759179040108,-480.0,0.00022147,2]
[388461916,1759179040117,-480.0,0.00022147,2]
[388461917,1759179040126,-480.0,0.00022147,2]
[388461918,1759179040135,-480.0,0.00022147,2]
[388461919,1759179040144,-480.0,0.00022147,2]
[388461920,1759179040154,-480.0,0.00022147,2]
[388461921,1759179040163,-360.35931492,0.00022147,2]
[388461922,1759179040172,-480.0,0.00022147,2]
[388461923,1759179040183,-480.0,0.00022147,2]
[388461924,1759179040193,-480.0,0.00022147,2]
[388461926,1759179040202,-586.64,0.00022147,2]
[388461928,1759179040211,-480.0,0.00022147,2]
[388461929,1759179040220,-666.57,0.00022147,2]
[388461930,1759179040229,-480.0,0.00022147,2]
[388461931,1759179040239,-480.0,0.00022147,2]
[388461932,1759179040248,-480.0,0.00022147,2]
[388461933,1759179040258,-480.0,0.00022147,2]
[388461934,1759179040267,-480.0,0.00022147,2]
[388461935,1759179040276,-480.0,0.00022147,2]
[388461936,1759179040285,-480.0,0.00022147,2]
[388461937,1759179040295,-480.0,0.00022147,2]
[388461938,1759179040304,-623.78,0.00022147,2]
[388461940,1759179040313,-480.0,0.00022147,2]
[388461942,1759179040323,-489.72,0.00022147,2]
[388461944,1759179040332,-852.47,0.00022147,2]
[388461946,1759179040341,-480.0,0.00022147,2]
[388461948,1759179040350,-480.0,0.00022147,2]
[388461950,1759179040359,-480.0,0.00022147,2]
[388461952,1759179040368,-480.0,0.00022147,2]
[388461954,1759179040377,-1341.68,0.00022147,2]
[388461956,1759179040386,-480.0,0.00022147,2]
[388461958,1759179040395,-480.0,0.00022147,2]
[388461959,1759179040404,-480.0,0.00022147,2]
[388461961,1759179040413,-1727.56,0.00022147,2]
[388461963,1759179040422,-480.0,0.00022147,2]
[388461965,1759179040432,-480.0,0.00022147,2]
[388461967,1759179040442,-480.0,0.00022147,2]
[388461969,1759179040451,-480.0,0.00022147,2]
[388461971,1759179040460,-504.51,0.00022147,2]
[388461973,1759179040469,-480.0,0.00022147,2]
[388461974,1759179040478,-480.0,0.00022147,2]
[388461976,1759179040491,-521.95,0.00022147,2]
[388461978,1759179040501,-480.0,0.00022147,2]
[388461980,1759179040510,-480.0,0.00022147,2]
[388461982,1759179040520,-480.0,0.00022147,2]
[388461984,1759179040531,-1149.13,0.00022147,2]
[388461985,1759179040541,-480.0,0.00022147,2]
[388461987,1759179040551,-480.0,0.00022147,2]
[388461989,1759179040561,-480.0,0.00022147,2]
[388461990,1759179040569,-1006.13,0.00022147,2]
[388461991,1759179040579,-480.0,0.00022147,2]
[388461992,1759179040589,-480.0,0.00022147,2]
[388461993,1759179040599,-480.0,0.00022147,2]
[388461994,1759179040609,-480.0,0.00022147,2]
[388461995,1759179040619,-1755.91,0.00022147,2]
[388461996,1759179040629,-480.0,0.00022147,2]
[388461997,1759179040638,-7286.17,0.00022147,2]
[388461998,1759179040647,-480.0,0.00022147,2]
[388461999,1759179040656,-1633.6,0.00022147,2]
[388462000,1759179040666,-500.0,0.00022147,2]
[388462001,1759179040675,-480.0,0.00022147,2]
[388462002,1759179040686,-1716.0,0.00022147,2]
[388462003,1759179040695,-480.0,0.00022147,2]
[388462004,1759179040704,-478.14170649,0.00022147,2]
[388462005,1759179040714,-151.0,0.00022147,2]
[388462006,1759179040724,-2374.18,0.00022147,2]
[388462007,1759179040734,-500.0,0.00022147,2]
[388462008,1759179040743,-500.0,0.00022147,2]
[388462009,1759179040753,-480.83,0.00022147,2]
[388462010,1759179040763,-151.0,0.00022147,2]
[388462011,1759179040772,-480.0,0.00022147,2]
[388462012,1759179040781,-151.0,0.00022147,2]
[388462013,1759179040790,-151.0,0.00022147,2]
[388462014,1759179040800,-158.20408301,0.00022147,2]
[388462015,1759179040809,-480.0,0.00022147,2]
[388462016,1759179040819,-480.0,0.00022147,2]
[388462017,1759179040829,-480.0,0.00022147,2]
[388462018,1759179040839,-348.96976665,0.00022147,2]
[388462019,1759179040848,-500.0,0.00022147,2]
[388462020,1759179040857,-500.0,0.00022147,2]
[388462021,1759179040866,-500.0,0.00022147,2]
[388462022,1759179040878,-500.0,0.00022147,2]
[388462023,1759179040887,-480.0,0.00022147,2]
[388462024,1759179040897,-500.0,0.00022147,2]
[388462025,1759179040907,-500.0,0.00022148,2]
[388462026,1759179040916,-500.0,0.00022148,2]
[388462027,1759179040927,-151.0,0.00022148,2]
[388462028,1759179040937,-151.0,0.00022148,2]
[388462029,1759179040947,-500.0,0.00022148,2]
[388462030,1759179040957,-500.0,0.00022148,2]
[388462031,1759179040967,-500.0,0.00022148,2]
[388462032,1759179040977,-500.0,0.00022148,2]
[388462033,1759179040988,-174.66757281,0.00022149,2]
[388462034,1759179040997,-480.0,0.00022149,2]
[388462035,1759179041008,-480.0,0.00022149,2]
[388462036,1759179041017,-480.0,0.00022149,2]
[388462037,1759179041026,-500.0,0.00022149,2]
[388462038,1759179041036,-151.0,0.00022149,2]
[388462039,1759179041045,-500.0,0.00022149,2]
[388462040,1759179041056,-151.0,0.00022149,2]
[388462041,1759179041069,-151.0,0.00022149,2]
[388462042,1759179041091,-151.0,0.00022149,2]
[388462043,1759179041113,-151.0,0.00022149,2]
[388462044,1759179041134,-596.39962578,0.00022149,2]
[388462045,1759179041156,-500.0,0.00022149,2]
[388462046,1759179041177,-145583.28548483,0.0002215,2]
[388462047,1759179041203,-151.0,0.000222,7]
[388462048,1759179041227,-151.0,0.00022236,2]
[388462049,1759179041252,-480.0,0.00022249,2]
[388462050,1759179041273,-922.82,0.00022249,2]
[388462051,1759179041295,-480.0,0.00022249,2]
[388462052,1759179041318,-480.0,0.00022249,2]
[388462053,1759179041340,-480.0,0.00022249,2]
[388462054,1759179041363,-480.0,0.00022249,2]
[388462055,1759179041386,-480.0,0.00022249,2]
[388462056,1759179041402,-480.0,0.00022249,2]
[388462057,1759179041411,-480.0,0.00022249,2]
[388462058,1759179041421,-480.0,0.00022249,2]
[388462059,1759179041430,-480.0,0.00022249,2]
[388462060,1759179041441,-480.0,0.00022249,2]
[388462061,1759179041450,-487.99538139,0.00022249,2]